bitfinex-derivatives/quotes_ETHF0:USTF0_20251005
["timestamp","ask_amount","ask_price","bid_price","bid_amount"]
[1759659133070,0.5178,4537.1,4537.0,0.00226517]
[1759659133272,0.5178,4537.4,4537.1,0.39665]
[1759659133472,0.5178,4537.4,4537.2,0.4888]
[1759659133673,0.39662,4537.5,4537.2,0.4888]
[1759659133876,3.2078,4538.2,4537.6,0.4888]
[1759659134077,0.39657,4538.0,4537.7,0.229]
[1759659134269,0.39657,4538.0,4537.8,0.4888]
[1759659134474,0.39658,4537.8,4537.7,0.7178]
[1759659134882,0.39657,4538.0,4537.7,0.229]
[1759659135079,0.5178,4537.9,4537.5,0.2023]
[1759659135285,0.2018,4537.5,4537.4,3.2078]
[1759659135586,0.91443,4537.4,4537.0,0.00226517]
[1759659135886,0.39659,4537.7,4537.2,0.39664]
[1759659136081,0.39661,4537.5,4537.1,0.4888]
[1759659136284,0.39661,4537.5,4537.0,0.60121517]
[1759659136285,0.91445,4537.1,4537.0,0.00226517]
[1759659136781,5.91445,4537.1,4537.0,0.00226517]
[1759659137375,0.5404,4536.9,4535.6,3.2078]
[1759659137680,0.2131,4536.5,4535.6,3.60457]
[1759659137980,0.5404,4536.4,4535.7,0.7208]
[1759659138183,0.5404,4536.4,4535.7,1.11756]
[1759659138387,0.5404,4536.4,4535.7,1.11918812]
[1759659138579,0.5404,4536.0,4535.8,0.5218]
[1759659138787,0.5404,4536.6,4536.0,0.39674]
[1759659138977,0.93711,4536.4,4536.0,0.39674]
[1759659139176,0.93712,4536.3,4536.1,0.5218]
[1759659139383,0.5404,4536.6,4536.2,0.229]
[1759659139580,0.5404,4536.6,4536.3,0.39671]
[1759659139786,0.5404,4536.9,4536.3,0.5218]
[1759659139986,0.39671,4536.5,4536.3,0.5218]
[1759659140177,0.93711,4536.5,4536.3,0.5218]
[1759659140986,0.5404,4536.5,4536.3,0.39671]
[1759659141188,0.5404,4536.5,4536.4,0.5218]
[1759659141584,0.39667,4536.9,4536.1,3.2078]
[1759659141784,0.93707,4536.9,4536.4,0.229]
[1759659141989,0.39668,4536.8,4536.4,0.7508]
[1759659142185,0.5404,4536.7,4536.6,0.5218]
[1759659143193,0.93708,4536.7,4536.6,0.5218]
[1759659143894,0.39668,4536.7,4536.6,0.5218]
[1759659144102,0.93708,4536.7,4536.6,0.5218]
[1759659144604,0.39668,4536.7,4536.6,0.5218]
[1759659144892,0.39669,4536.7,4536.6,0.5218]
[1759659145094,0.39666,4536.9,4536.6,0.39668]
[1759659145297,0.39668,4536.7,4536.5,0.82979]
[1759659145688,0.39668,4536.7,4536.6,0.5218]
[1759659145890,0.5404,4537.1,4536.5,0.4331]
[1759659146096,0.5624,4537.2,4536.8,0.5218]
[1759659146295,0.39665,4537.1,4537.0,0.5218]
[1759659146787,3.2078,4537.8,4537.2,0.39664]
[1759659146996,0.39661,4537.6,4537.3,0.39662]
[1759659147198,3.2078,4537.8,4537.5,0.5218]
[1759659147395,3.2078,4537.8,4537.6,0.3966]
[1759659147698,0.39658,4537.9,4537.8,0.5218]
[1759659147888,0.5404,4538.2,4537.5,0.7259]
[1759659148092,0.39658,4537.9,4537.8,0.5218]
[1759659148293,0.39654,4538.4,4538.3,0.5218]
[1759659148501,0.00162761,4538.5,4538.4,0.91833]
[1759659149293,0.00162761,4538.5,4538.4,1.08218056]
[1759659149496,0.022,4538.9,4538.8,0.9183]
[1759659149695,0.022,4538.9,4538.8,1.1463]
[1759659150200,0.39643,4539.6,4539.1,0.39647]
[1759659150501,0.39645,4539.4,4539.2,0.5218]
[1759659150798,0.39645,4539.4,4539.3,0.7498]
[1759659151097,0.39641,4539.8,4539.3,0.7498]
[1759659151301,0.39644,4539.4,4539.3,0.228]
[1759659151499,0.5404,4539.4,4539.3,0.228]
[1759659151900,0.39641,4539.9,4539.5,0.59583]
[1759659152096,0.00171151,4539.9,4539.5,0.59583]
[1759659152398,0.00171151,4539.9,4539.7,0.5018]
[1759659152599,0.00171151,4539.9,4539.8,0.7298]
[1759659154002,0.00171151,4539.9,4539.8,5.7298]
[1759659155401,0.5387,4539.8,4539.7,0.5018]
[1759659155601,0.93511,4539.8,4539.7,0.7298]
[1759659155799,0.5387,4539.7,4539.3,0.00212209]
[1759659156000,0.5387,4539.5,4539.4,0.7298]
[1759659156395,0.00171151,4539.9,4539.4,0.228]
[1759659156605,0.00171151,4539.9,4539.8,3.7096]
[1759659156799,0.00171151,4539.9,4539.8,4.33401]
[1759659156996,0.54041151,4539.9,4539.8,3.60421]
[1759659157304,0.54041151,4539.9,4539.8,4.33401]
[1759659158303,0.54041151,4539.9,4539.8,3.9376]
[1759659158601,0.54041151,4539.9,4539.8,3.2078]
[1759659158897,0.5387,4539.4,4539.3,3.71172209]
[1759659159099,0.5387,4539.4,4539.3,3.93972209]
[1759659159301,0.5387,4539.4,4539.3,3.20992209]
[1759659159604,0.5387,4539.4,4539.3,3.43792209]
[1759659160705,0.00171151,4539.9,4539.5,0.1994]
[1759659161002,0.93511,4539.8,4539.6,0.228]
[1759659161203,0.5387,4539.7,4539.6,1.12622]
[1759659161506,0.5387,4539.7,4539.6,0.228]
[1759659161696,0.39641,4539.8,4539.6,0.228]
[1759659161697,0.93512,4539.8,4539.7,0.5018]
[1759659161896,0.39642,4539.8,4539.6,0.228]
[1759659162104,0.00171151,4539.9,4539.7,0.39642]
[1759659162301,0.93513,4539.6,4539.5,0.39643]
[1759659162501,0.5387,4539.6,4539.5,1.12623]
[1759659163098,0.5387,4539.8,4539.6,0.5018]
[1759659163306,0.00171151,4539.9,4539.8,0.5018]
[1759659163499,0.00171151,4539.9,4539.8,3.9376]
[1759659163803,0.54041151,4539.9,4539.3,0.00212209]
[1759659164007,0.93514,4539.5,4539.4,0.228]
[1759659164201,0.39641,4539.8,4539.4,0.7298]
[1759659164405,0.93512,4539.7,4539.6,0.39642]
[1759659164602,0.5387,4539.7,4539.6,0.39642]
[1759659164899,0.5387,4539.7,4539.6,0.89822]
[1759659165103,0.39641,4539.8,4539.7,0.5018]
[1759659165405,0.93511,4539.8,4539.7,0.5018]
[1759659165901,0.5387,4539.7,4539.6,0.62442]
[1759659166707,0.5387,4539.7,4539.6,0.228]
[1759659167102,0.5387,4539.7,4539.6,0.62443]
[1759659167603,0.5387,4539.7,4539.3,0.00212209]
[1759659167903,0.00171151,4539.9,4539.5,0.5292]
[1759659168107,0.00171151,4539.9,4539.6,0.39642]
[1759659168304,0.5204,4539.8,4539.7,0.62442]
[1759659168499,0.39812151,4539.9,4539.8,0.5292]
[1759659168500,0.00171151,4539.9,4539.8,0.5292]
[1759659169110,0.022,4540.7,4539.8,5.0]
[1759659169408,0.022,4540.7,4540.6,0.92554]
[1759659169602,0.022,4540.7,4540.6,1.15354]
[1759659169800,0.5204,4541.4,4541.3,0.39628]
[1759659170000,0.5204,4541.4,4541.3,0.62428]
[1759659170207,0.52269909,4541.4,4541.3,0.62428]
[1759659170906,0.00229909,4541.4,4541.3,1.15348]
[1759659171103,0.00229909,4541.4,4541.3,1.31958843]
[1759659171408,0.5204,4542.2,4542.1,0.92541]
[1759659171610,0.5204,4542.5,4542.4,0.39618]
[1759659171911,0.5204,4542.8,4542.5,0.39617]
[1759659172098,0.022,4542.9,4542.5,0.5292]
[1759659172303,0.5204,4542.8,4542.5,0.5292]
[1759659172503,0.52202986,4542.8,4542.7,0.39615]
[1759659172704,0.52202986,4542.8,4542.7,0.228]
[1759659172903,0.52202986,4542.8,4542.7,0.7572]
[1759659173196,0.52202986,4542.8,4542.7,0.228]
[1759659174209,0.022,4542.9,4542.8,0.92535]
[1759659174510,0.022,4542.9,4542.8,1.15335]
[1759659174903,0.5204,4542.8,4542.7,3.2078]
[1759659175211,0.41814,4542.9,4542.8,0.5292]
[1759659175212,0.022,4542.9,4542.8,0.5292]
[1759659175413,0.02471958,4542.9,4542.8,0.5292]
[1759659176107,0.02471958,4542.9,4542.8,0.7572]
[1759659176510,0.54511958,4542.9,4542.8,0.228]
[1759659176907,0.54511958,4542.9,4542.7,3.2078]
[1759659176908,0.91655,4542.8,4542.7,3.2078]
[1759659177109,0.91655,4542.8,4542.7,3.4358]
[1759659177309,0.5204,4542.8,4542.7,3.965]
[1759659177606,0.5204,4542.8,4542.7,4.36116]
[1759659177811,0.5204,4542.8,4542.7,3.965]
[1759659178112,0.02471958,4542.9,4542.8,0.92535]
[1759659178609,0.94125958,4542.9,4542.7,3.2078]
[1759659178806,0.5204,4542.8,4542.7,3.2078]
[1759659179004,0.02471958,4542.9,4542.8,0.92535]
[1759659179204,0.42085958,4542.9,4542.7,3.2078]
[1759659179507,0.5204,4542.8,4542.7,3.4358]
[1759659181214,0.5204,4542.8,4542.7,3.965]
[1759659181401,0.02471958,4542.9,4542.8,0.92535]
[1759659181605,0.02471958,4542.9,4542.8,0.5292]
[1759659181806,0.02471958,4542.9,4542.7,3.4358]
[1759659181807,0.5204,4542.8,4542.7,3.2078]
[1759659182005,0.5204,4542.8,4542.7,3.4358]
[1759659182409,0.02471958,4542.9,4542.8,0.92535]
[1759659183413,0.022,4543.4,4543.3,0.9253]
[1759659183610,0.022,4543.4,4543.3,1.1533]
[1759659183918,0.91649,4543.5,4543.4,0.5292]
[1759659184107,0.39608,4543.6,4543.3,0.7572]
[1759659184413,0.5204,4543.5,4543.4,0.5292]
[1759659184609,0.5204,4543.5,4543.4,0.7572]
[1759659184915,0.7144,4543.5,4543.4,0.228]
[1759659185911,0.5204,4543.3,4543.2,1.0453]
[1759659186215,0.5204,4543.3,4543.2,1.2733]
[1759659186913,0.5204,4543.3,4543.2,1.0453]
[1759659187617,1.1876,4543.3,4543.2,1.0453]
[1759659188815,6.1876,4543.3,4543.2,1.0453]
[1759659189117,6.1876,4543.3,4542.5,0.74922284]
[1759659189118,1.58377,4542.6,4542.5,0.74922284]
[1759659189517,6.58377,4542.6,4542.5,0.74922284]
[1759659189709,1.1876,4542.6,4542.5,1.98472284]
[1759659189910,0.3296,4542.6,4542.5,1.98472284]
[1759659190207,1.24611,4543.3,4543.2,0.8829]
[1759659191224,1.58376,4542.7,4542.5,0.00252284]
[1759659191512,0.91656,4542.7,4542.5,0.00252284]
[1759659193115,0.39619,4542.3,4542.2,0.6997]
[1759659193320,4.35239,4542.3,4542.2,0.6997]
[1759659193518,0.39629,4541.2,4541.1,3.2078]
[1759659193719,0.9167,4541.1,4540.9,0.228]
[1759659193913,0.5204,4541.4,4541.1,0.5292]
[1759659194109,0.59027,4541.5,4541.3,0.39628]
[1759659194110,0.39626,4541.5,4541.3,0.39628]
[1759659194310,0.39626,4541.5,4541.4,0.5292]
[1759659194519,0.39626,4541.5,4541.1,0.00249647]
[1759659194520,3.2078,4541.7,4541.5,0.39626]
[1759659194722,3.2078,4541.7,4541.6,0.5292]
[1759659194918,3.7282,4541.7,4541.6,0.5292]
[1759659195518,4.12444,4541.7,4541.6,0.5292]
[1759659196424,3.2078,4541.7,4541.6,0.5292]
[1759659196811,0.5204,4541.5,4541.2,1.0062]
[1759659197011,0.5204,4541.3,4541.2,1.0062]
[1759659197221,0.5204,4541.3,4541.2,1.2342]
[1759659197516,0.5204,4541.3,4541.2,1.0062]
[1759659197716,0.39628,4541.4,4541.2,1.5275]
[1759659197917,0.39628,4541.4,4541.3,0.5213]
[1759659199923,0.90509,4541.2,4541.1,0.00249647]
[1759659200122,0.90509,4541.2,4541.1,0.23049647]
[1759659200320,1.58219,4541.2,4541.1,0.23049647]
[1759659200724,1.58219,4541.2,4541.1,0.58159647]
[1759659201615,1.58219,4541.2,4541.1,0.00249647]
[1759659201818,12.70679383,4541.2,4541.1,6.47e-06]
[1759659202824,12.93479383,4541.2,4541.1,6.47e-06]
[1759659203515,4.78999,4541.2,4541.1,6.47e-06]
[1759659204316,10.01799,4541.2,4541.0,0.20766647]
[1759659204520,1.07342,4540.8,4540.7,0.9947]
[1759659204720,1.58222,4540.8,4540.7,0.9947]
[1759659205522,1.58222,4540.8,4540.7,0.99689843]
[1759659205720,1.58222,4540.8,4540.7,1.34799843]
[1759659205922,1.58222,4540.8,4540.7,0.35329843]
[1759659207422,1.58222,4540.8,4540.7,0.00219843]
[1759659207827,1.58222,4540.8,4540.7,0.35329843]
[1759659208028,1.58222,4540.8,4540.7,0.00219843]
[1759659210626,1.58222,4540.8,4540.7,0.35329843]
[1759659211428,0.39632,4540.8,4540.7,1.22409843]
[1759659211934,1.81105,4540.5,4540.4,0.7614]
[1759659212229,1.81105,4540.5,4540.4,1.0924]
[1759659212426,0.99076,4541.1,4540.4,1.0924]
[1759659212427,0.5199,4541.1,4540.6,1.55523]
[1759659212622,0.39631,4541.0,4540.9,1.1589]
[1759659212826,1.46581,4541.0,4540.9,0.88021116]
[1759659213025,1.81101,4541.0,4540.9,0.88021116]
[1759659213927,1.0695,4541.0,4540.9,1.78582116]
[1759659214130,1.26279,4541.2,4541.1,1.1589]
[1759659214330,0.2054,4541.5,4541.1,1.3869]
[1759659214527,0.8665,4541.4,4541.3,0.6496]
[1759659215033,1.26277,4541.4,4541.3,0.6496]
[1759659215233,0.39627,4541.4,4541.3,1.1589]
[1759659215428,0.39623,4541.9,4541.8,0.6496]
[1759659215732,0.5199,4541.9,4541.8,1.1589]
[1759659216329,1.2117,4541.9,4541.8,0.6496]
[1759659216528,1.2117,4541.9,4541.5,3.2078]
[1759659216529,0.39624,4541.7,4541.5,0.331]
[1759659216730,0.3466,4541.1,4541.0,1.9876]
[1759659216928,0.3466,4541.1,4541.0,2.2156]
[1759659217128,0.8665,4541.1,4541.0,1.3869]
[1759659217331,0.8665,4541.1,4541.0,0.8776]
[1759659217532,1.2117,4541.1,4541.0,0.8776]
[1759659218333,1.2117,4541.1,4541.0,0.6496]
[1759659218526,1.2117,4541.1,4541.0,1.2739]
[1759659218726,1.2117,4541.1,4541.0,0.8776]
[1759659218928,1.2117,4541.1,4541.0,0.6496]
[1759659219234,1.2117,4541.1,4541.0,0.8776]
[1759659220029,0.8665,4541.1,4541.0,0.6496]
[1759659220235,0.8665,4541.1,4541.0,1.3869]
[1759659220236,0.5199,4541.1,4541.0,1.3869]
[1759659220533,0.91619,4541.2,4541.1,1.1589]
[1759659220734,1.26279,4541.2,4541.1,1.1589]
[1759659221125,1.26279,4541.2,4541.1,0.6496]
[1759659221324,1.60799,4541.2,4541.1,0.6496]
[1759659221929,1.2117,4541.2,4541.1,0.6496]
[1759659222129,0.8665,4541.2,4541.1,1.1589]
[1759659222331,0.96787,4541.5,4541.4,0.6496]
[1759659222530,1.83297,4541.5,4541.4,0.6496]
[1759659222735,1.81097,4541.5,4541.4,0.6496]
[1759659222934,1.81097,4541.5,4541.4,1.04587]
[1759659223137,1.81097,4541.5,4541.4,0.6496]
[1759659223932,1.81097,4541.5,4541.4,1.04587]
[1759659224934,1.81097,4541.5,4541.4,1.55517]
[1759659224935,1.4147,4541.5,4541.4,1.55517]
[1759659225140,0.5496,4541.5,4541.2,0.8574]
[1759659225340,1.46576,4541.5,4541.4,0.39627]
[1759659225641,0.74287,4541.4,4541.3,0.39628]
[1759659225836,0.7229,4541.5,4541.4,0.39627]
[1759659227341,0.5317,4541.4,4541.2,0.8574]
[1759659227640,0.3963,4541.1,4541.0,0.925]
[1759659227841,1.6008,4541.1,4541.0,1.153]
[1759659228733,1.6008,4541.1,4541.0,0.925]
[1759659228931,1.6008,4541.1,4541.0,1.153]
[1759659229342,1.6008,4541.1,4541.0,0.228]
[1759659231339,0.5317,4541.1,4541.0,0.228]
[1759659231541,0.5317,4541.1,4541.0,5.228]
[1759659232041,3.529,4541.4,4541.0,5.228]
[1759659232245,0.71749,4541.2,4541.0,0.6243]
[1759659232446,1.8142,4541.0,4540.9,0.00261116]
[1759659232742,1.4179,4541.0,4540.9,0.23061116]
[1759659237648,1.4179,4541.0,4540.9,0.00261116]
[1759659237839,1.4179,4541.0,4540.9,0.23061116]
[1759659238046,1.4179,4541.0,4540.9,0.00261116]
[1759659238349,1.4179,4541.0,4540.9,0.23061116]
[1759659240745,1.8142,4541.0,4540.9,0.23061116]
[1759659241147,1.60083,4540.7,4540.6,1.6505]
[1759659241336,1.0692,4539.9,4539.8,0.7904088]
[1759659241540,1.6009,4539.9,4539.8,0.228]
[1759659241942,1.6009,4539.9,4539.5,1.1868388]
[1759659241943,1.60093,4539.6,4539.5,0.7904088]
[1759659242139,1.60285807,4539.6,4539.5,0.00253007]
[1759659242342,0.85482807,4539.6,4539.5,0.23053007]
[1759659242944,1.20642807,4539.6,4539.5,0.23053007]
[1759659244349,0.85482807,4539.6,4539.5,0.23053007]
[1759659245051,1.20642807,4539.6,4539.5,0.23053007]
[1759659246147,4.81065807,4539.6,4539.5,0.00253007]
[1759659246347,4.41422807,4539.6,4539.5,0.23053007]
[1759659247050,4.41422807,4539.6,4539.5,0.00253007]
[1759659249649,9.41422807,4539.6,4539.5,0.00253007]
[1759659249946,0.39645,4539.3,4539.1,1.75213007]
[1759659250152,1.2045,4539.2,4539.1,0.39647]
[1759659250942,1.2045,4539.2,4539.0,0.62448]
[1759659251147,1.2045,4539.2,4539.1,0.00260347]
[1759659251343,4.4123,4539.2,4539.1,0.00260347]
[1759659251548,1.2045,4539.2,4539.1,0.00260347]
[1759659251747,0.00192807,4539.6,4539.5,1.1502]
[1759659251948,0.00192807,4539.6,4539.5,1.5307]
[1759659252150,3.2078,4540.3,4539.9,0.991]
[1759659252352,3.2078,4540.3,4540.2,1.54657]
[1759659252853,3.8806,4540.3,4540.2,0.72827]
[1759659253049,3.2078,4540.3,4540.2,1.54657]
[1759659253247,3.20974221,4540.3,4540.2,1.54657]
[1759659253648,4.06264221,4540.3,4540.2,1.54657]
[1759659253854,4.06264221,4540.3,4540.2,1.05607]
[1759659254050,4.41424221,4540.3,4540.2,0.72827]
[1759659254243,4.41424221,4540.3,4540.2,1.05607]
[1759659254652,4.41424221,4540.3,4540.2,0.72827]
[1759659254842,4.41424221,4540.3,4540.2,1.05607]
[1759659255042,4.06264221,4540.3,4540.2,1.54657]
[1759659255953,3.2078,4540.8,4540.7,0.39633]
[1759659256152,4.0607,4540.8,4540.7,1.28403]
[1759659256456,4.4123,4540.8,4540.7,0.62433]
[1759659257053,4.41402445,4540.8,4540.7,0.95623]
[1759659257253,4.41402445,4540.8,4540.7,0.62433]
[1759659258553,4.41402445,4540.8,4540.7,0.95683]
[1759659258753,4.41402445,4540.8,4540.7,1.81373]
[1759659258947,3.20952445,4540.8,4540.7,1.81373]
[1759659259160,0.00172445,4540.8,4540.7,1.81373]
[1759659259857,0.00172445,4540.8,4540.7,1.98501825]
[1759659260161,0.84182445,4540.8,4540.7,1.98501825]
[1759659260353,0.51382445,4540.8,4540.7,1.98501825]
[1759659260754,0.00172445,4540.8,4540.7,1.98501825]
[1759659260960,3.5358,4541.3,4541.2,0.6763]
[1759659261156,3.5358,4541.3,4541.2,1.81269]
[1759659261758,3.8855,4541.3,4541.2,0.95579]
[1759659261954,3.88804931,4541.3,4541.2,0.95579]
[1759659262354,0.68024931,4541.3,4541.2,1.46889]
[1759659263158,1.19234931,4541.3,4541.2,1.81269]
[1759659263657,0.68024931,4541.3,4541.2,1.81269]
[1759659263860,0.33054931,4541.3,4541.2,1.81269]
[1759659264257,0.00254931,4541.3,4541.2,1.81269]
[1759659267262,1.19234931,4541.3,4541.2,1.81269]
[1759659267768,1.19234931,4541.3,4541.2,0.62329]
[1759659268665,1.19234931,4541.3,4541.2,0.39629]
[1759659268862,1.19234931,4541.3,4541.2,0.95579]
[1759659269065,1.19234931,4541.3,4541.2,0.62329]
[1759659269963,1.19234931,4541.3,4541.2,0.95579]
[1759659270164,0.00254931,4541.3,4541.2,1.81269]
[1759659273762,1.18284931,4541.3,4541.2,1.81269]
[1759659274270,1.18284931,4541.3,4541.2,1.58569]
[1759659274563,1.18284931,4541.3,4541.2,1.81269]
[1759659275557,1.18284931,4541.3,4541.2,0.95579]
[1759659275965,1.18284931,4541.3,4541.2,0.72879]
[1759659276175,1.18284931,4541.3,4541.2,1.79899]
[1759659276468,0.69054931,4541.3,4541.2,1.79899]
[1759659276668,1.18284931,4541.3,4541.2,1.79899]
[1759659277257,1.18284931,4541.3,4540.9,0.8583]
[1759659277570,1.31591,4541.0,4540.9,0.8583]
[1759659277869,1.4119,4541.0,4540.9,0.8583]
[1759659278071,6.4119,4541.0,4540.9,0.8583]
[1759659278962,0.39632,4540.9,4539.6,0.56272324]
[1759659279162,0.7076,4539.7,4539.6,1.34899324]
[1759659279468,0.7076,4539.7,4539.6,1.4097]
[1759659280466,0.7076,4539.7,4539.6,1.1827]
[1759659280671,0.7076,4539.7,4539.6,1.4097]
[1759659281367,0.3476,4539.7,4539.6,1.4097]
[1759659281569,3.9154,4540.2,4540.1,0.8485]
[1759659281968,3.9154,4540.2,4540.1,1.24488]
[1759659284563,0.9331,4539.8,4539.7,0.8497]
[1759659284769,0.9331,4539.8,4539.7,1.5857]
[1759659285172,0.7076,4539.8,4539.7,2.2594]
[1759659285372,0.3476,4539.8,4539.7,2.2594]
[1759659285666,0.3476,4539.8,4539.7,1.4097]
[1759659285977,0.7076,4539.8,4539.7,1.4097]
[1759659286273,0.3476,4539.8,4539.7,1.4097]
[1759659287266,3.2078,4540.2,4540.1,0.5268]
[1759659287463,0.227,4540.6,4540.5,1.47035]
[1759659287966,3.2078,4541.2,4540.7,0.99084]
[1759659288170,3.2078,4541.7,4541.1,1.5916]
[1759659288376,3.2078,4541.7,4541.2,1.1953]
[1759659290975,9.31e-06,4541.3,4541.2,1.1953]
[1759659292769,2.35909931,4541.7,4541.5,0.207]
[1759659292969,2.35909931,4541.7,4541.6,1.81855]
[1759659293771,2.36191653,4541.7,4541.6,1.81855]
[1759659293969,0.00281722,4541.7,4541.6,1.81855]
[1759659294573,0.00281722,4541.7,4541.6,1.26325]
[1759659294779,0.00281722,4541.7,4541.6,0.5268]
[1759659294981,0.39905722,4541.7,4541.6,0.7538]
[1759659295379,0.39905722,4541.7,4541.6,1.094]
[1759659295773,0.39905722,4541.7,4541.6,0.7538]
[1759659295971,0.39905722,4541.7,4541.6,0.5268]
[1759659296172,0.39905722,4541.7,4541.5,0.207]
[1759659296380,0.39905722,4541.7,4541.5,0.7338]
[1759659296574,0.39905722,4541.7,4541.6,0.5268]
[1759659299277,0.39905722,4541.7,4541.6,0.867]
[1759659299968,0.00281722,4541.7,4541.6,1.1953]
[1759659301270,0.00281722,4541.7,4541.6,4.4031]
[1759659301876,0.00281722,4541.7,4541.6,1.1953]
[1759659302069,0.00281722,4541.7,4541.6,0.5268]
[1759659302270,0.39625,4541.6,4541.4,0.8223]
[1759659302475,0.39625,4541.6,4541.4,1.3491]
[1759659302675,0.62325,4541.6,4541.4,1.3491]
[1759659303478,5.0,4541.5,4541.4,0.8223]
[1759659303680,5.0,4541.5,4541.4,1.3491]
[1759659304078,5.0,4541.5,4541.4,1.6893]
[1759659304275,0.227,4541.6,4541.4,2.0176]
[1759659304478,0.227,4541.6,4541.5,1.4023]
[1759659304778,0.00281722,4541.7,4541.6,1.1953]
[1759659308481,0.00281722,4541.7,4541.6,1.4223]
[1759659308677,0.39905722,4541.7,4541.6,0.5268]
[1759659308884,0.39905722,4541.7,4541.6,0.867]
[1759659309980,0.39905722,4541.7,4541.6,0.5268]
[1759659310590,0.39626,4541.5,4541.4,0.8223]
[1759659310982,8.48609295,4541.5,4541.4,0.8223]
[1759659311286,8.48609295,4541.5,4541.4,1.3491]
[1759659312278,0.62326,4541.5,4541.4,2.0176]
[1759659313194,0.39626,4541.5,4541.4,2.0176]
[1759659316189,0.39626,4541.5,4541.4,1.3491]
[1759659316383,3.24222981,4541.5,4541.4,0.8223]
[1759659317291,8.24222981,4541.5,4541.4,0.8223]
[1759659318186,8.24222981,4541.5,4541.4,0.30024]
[1759659318387,0.39632,4540.8,4540.7,0.5047]
[1759659318589,3.83112,4540.8,4540.7,0.5047]
[1759659318792,8.83112,4540.8,4540.7,0.5047]
[1759659319487,3.83112,4540.8,4540.7,1.1905]
[1759659322693,0.39634,4540.6,4540.5,0.207]
[1759659322891,0.39634,4540.6,4540.5,0.7117]
[1759659323888,0.62334,4540.6,4540.5,0.7117]
[1759659324597,3.83114,4540.6,4540.5,0.7117]
[1759659325193,3.83114,4540.6,4540.5,1.3975]
[1759659327995,3.83114,4540.6,4540.5,0.7117]
[1759659328303,3.83114,4540.6,4540.5,1.3975]
[1759659328496,3.2078,4540.6,4540.5,1.3975]
[1759659328697,0.022,4540.9,4540.6,0.5047]
[1759659328899,0.64531,4540.9,4540.8,0.5047]
[1759659329301,0.39634,4540.6,4540.5,0.7117]
[1759659329498,0.62334,4540.6,4540.5,0.7117]
[1759659330203,0.62334,4540.6,4540.5,1.0696]
[1759659330400,0.62334,4540.6,4540.5,1.3975]
[1759659330799,0.022,4540.9,4540.8,1.1905]
[1759659331005,0.39905722,4541.7,4541.6,0.6858]
[1759659331303,0.39905722,4541.7,4541.6,0.5047]
[1759659331495,3.52347157,4541.7,4541.5,0.7099]
[1759659331696,3.52347157,4541.7,4541.6,0.5394]
[1759659331895,3.52347157,4541.7,4541.6,1.2016]
[1759659332295,0.62605722,4541.7,4541.6,1.2016]
[1759659335102,0.3963,4541.1,4541.0,0.8674]
[1759659335502,0.3963,4541.1,4541.0,1.4068]
[1759659335911,0.39629,4541.2,4541.1,1.2016]
[1759659336407,0.22981722,4541.7,4541.6,0.6622]
[1759659336606,0.62605722,4541.7,4541.6,1.2016]
[1759659337706,0.39905722,4541.7,4541.6,1.2016]
[1759659339698,0.39905722,4541.7,4541.6,6.2016]
[1759659339903,0.39905722,4541.7,4541.6,1.2016]
[1759659340207,0.00281722,4541.7,4541.6,1.2016]
[1759659341507,0.00281722,4541.7,4541.6,6.2016]
[1759659342008,0.227,4542.4,4542.3,1.2016]
[1759659342508,3.60397,4542.5,4542.4,0.5394]
[1759659342714,3.60397,4542.5,4542.4,1.2016]
[1759659343010,3.60632856,4542.5,4542.4,1.20347823]
[1759659343413,0.00235856,4542.5,4542.4,1.20347823]
[1759659345508,0.00235856,4542.5,4542.4,1.43047823]
[1759659345911,0.00235856,4542.5,4542.4,6.43047823]
[1759659347609,0.39613,4543.0,4542.9,1.225]
[1759659347814,0.39613,4543.0,4542.9,1.452]
[1759659348013,0.022,4543.3,4542.9,1.452]
[1759659348208,0.41811,4543.3,4543.2,0.6962]
[1759659348408,0.39611,4543.3,4543.2,1.225]
[1759659348608,0.39864658,4543.3,4543.2,1.225]
[1759659349413,0.00253658,4543.3,4543.2,1.225]
[1759659349910,0.00253658,4543.3,4543.2,0.5288]
[1759659350115,0.00253658,4543.3,4543.2,1.225]
[1759659352515,0.00253658,4543.3,4543.2,0.5288]
[1759659352814,0.00253658,4543.3,4543.2,0.8914]
[1759659353312,2.89286731,4543.3,4543.2,0.8914]
[1759659354216,0.39611,4543.2,4543.0,0.1976]
[1759659354427,0.39611,4543.2,4543.0,0.7264]
[1759659354718,2.88748018,4543.1,4543.0,0.7264]
[1759659355425,0.39617,4542.6,4542.5,0.5288]
[1759659355718,1.5418,4542.2,4542.1,0.7018]
[1759659355924,1.7688,4542.2,4542.1,0.7018]
[1759659356216,0.75855,4541.6,4541.5,4.9082]
[1759659356423,1.11675,4541.6,4541.5,4.9082]
[1759659356626,1.11675,4541.6,4541.5,4.90994649]
[1759659357317,0.39625,4541.6,4541.5,4.90994649]
[1759659357519,3.2078,4542.1,4542.0,1.4226]
[1759659357732,4.55151,4542.1,4542.0,1.4226]
[1759659358114,4.97661,4542.1,4542.0,1.4226]
[1759659358917,4.97661,4542.1,4542.0,1.089]
[1759659359720,4.97661,4542.1,4542.0,0.5288]
[1759659360124,1.54183,4541.9,4541.8,0.9247]
[1759659360421,1.11675,4541.6,4541.5,0.80224649]
[1759659360620,4.97665,4541.6,4541.5,0.80224649]
[1759659360925,4.55155,4541.6,4541.5,1.89124649]
[1759659361126,3.2078,4541.6,4541.5,2.22484649]
[1759659363521,3.5701,4541.6,4541.5,2.22484649]
[1759659363924,3.2078,4541.6,4541.5,2.22484649]
[1759659364829,0.39625,4541.7,4541.6,0.5288]
[1759659365124,0.39625,4541.7,4541.6,1.225]
[1759659366038,0.39624,4541.8,4541.6,0.6962]